[Event "*** Titled Tuesday Blitz"]
[Site "Chess.com"]
[Date "2020.04.14"]
[Round "5"]
[White "hakki1"]
[Black "enriquetejedor"]
[Result "0-1"]
[WhiteElo "2389"]
[BlackElo "2582"]
[TimeControl "180+1"]
[EndTime "10:50:11 PDT"]
[Termination "enriquetejedor won by resignation"]

1. d4 {[%clk 0:02:59.5]} 1... Nf6 {[%clk 0:03:00.1]} 2. c4 {[%clk 0:02:59.5]}
2... d6 {[%clk 0:03:00.4]} 3. Nc3 {[%clk 0:02:59]} 3... e5 {[%clk 0:03:01.3]} 4.
Nf3 {[%clk 0:02:58.4]} 4... Nbd7 {[%clk 0:03:01.2]} 5. e4 {[%clk 0:02:57.9]}
5... g6 {[%clk 0:02:59.5]} 6. Be2 {[%clk 0:02:57.4]} 6... Bg7 {[%clk 0:02:59.7]}
7. O-O {[%clk 0:02:57.3]} 7... O-O {[%clk 0:03:00.2]} 8. Qc2 {[%clk 0:02:57]}
8... exd4 {[%clk 0:02:52.9]} 9. Nxd4 {[%clk 0:02:56.1]} 9... Re8 {[%clk
0:02:53]} 10. Be3 {[%clk 0:02:45.2]} 10... Nc5 {[%clk 0:02:50.6]} 11. f3 {[%clk
0:02:42.9]} 11... a5 {[%clk 0:02:48.8]} 12. Rad1 {[%clk 0:02:41]} 12... Nfd7
{[%clk 0:02:36.2]} 13. Qd2 {[%clk 0:02:38.5]} 13... Nb6 {[%clk 0:02:35.2]} 14.
Bh6 {[%clk 0:02:35.8]} 14... Bd7 {[%clk 0:02:33.7]} 15. Bxg7 {[%clk 0:02:35.2]}
15... Kxg7 {[%clk 0:02:34.6]} 16. b3 {[%clk 0:02:30.7]} 16... h5 {[%clk
0:02:32.8]} 17. Nc2 {[%clk 0:02:27.1]} 17... Qf6 {[%clk 0:02:32.4]} 18. Ne3
{[%clk 0:02:26.8]} 18... Bc6 {[%clk 0:02:31.8]} 19. Ncd5 {[%clk 0:02:17]} 19...
Bxd5 {[%clk 0:02:32]} 20. Nxd5 {[%clk 0:02:15.8]} 20... Nxd5 {[%clk 0:02:32.3]}
21. Qxd5 {[%clk 0:02:15.6]} 21... Re5 {[%clk 0:02:31.4]} 22. Qd2 {[%clk
0:02:12.5]} 22... Re7 {[%clk 0:02:31]} 23. Bd3 {[%clk 0:02:10.8]} 23... Ne6
{[%clk 0:02:30.6]} 24. Bb1 {[%clk 0:02:09.4]} 24... g5 {[%clk 0:02:30.4]} 25. g3
{[%clk 0:02:07.5]} 25... h4 {[%clk 0:02:30.7]} 26. f4 {[%clk 0:02:05.6]} 26...
hxg3 {[%clk 0:02:30.4]} 27. hxg3 {[%clk 0:02:05.2]} 27... gxf4 {[%clk
0:02:30.9]} 28. gxf4 {[%clk 0:02:03.9]} 28... Rg8 {[%clk 0:02:31.5]} 29. e5
{[%clk 0:01:20.2]} 29... Kf8+ {[%clk 0:02:28.3]} 30. Kh1 {[%clk 0:01:20]} 30...
Rh8+ {[%clk 0:02:16]} 31. Kg1 {[%clk 0:01:19.1]} 31... Qh4 {[%clk 0:02:15.5]}
32. Be4 {[%clk 0:01:07.8]} 32... f5 {[%clk 0:02:04.1]} 33. exf6 {[%clk 0:01:03]}
33... Qxf6 {[%clk 0:02:03.3]} 34. Bg2 {[%clk 0:00:55.4]} 34... Rg7 {[%clk
0:02:00.6]} 35. f5 {[%clk 0:00:54.3]} 35... Ng5 {[%clk 0:02:00.2]} 36. Kf2
{[%clk 0:00:42.2]} 36... Ne4+ {[%clk 0:01:55]} 37. Bxe4 {[%clk 0:00:37.3]} 37...
Rh2+ {[%clk 0:01:55.3]} 38. Kf3 {[%clk 0:00:35]} 38... Rxd2 {[%clk 0:01:31.4]}
39. Rxd2 {[%clk 0:00:34.5]} 39... Qc3+ {[%clk 0:01:31.2]} 40. Rd3 {[%clk
0:00:32.9]} 40... Qc2 {[%clk 0:01:29.4]} 41. f6 {[%clk 0:00:31]} 41... Qg2+
{[%clk 0:01:27.8]} 42. Ke3 {[%clk 0:00:28.8]} 42... Rg3+ {[%clk 0:01:27.2]} 43.
Kd4 {[%clk 0:00:25.5]} 43... c5+ {[%clk 0:01:16.6]} 44. Kc3 {[%clk 0:00:16.4]}
44... Qxf1 {[%clk 0:01:16.1]} 45. Rxg3 {[%clk 0:00:15.2]} 45... Qe1+ {[%clk
0:01:16.4]} 0-1

[Event "*** Titled Tuesday Blitz"]
[Site "Chess.com"]
[Date "2020.04.14"]
[Round "5"]
[White "tandaleo"]
[Black "HElissalt"]
[Result "1-0"]
[WhiteElo "2342"]
[BlackElo "2146"]
[TimeControl "180+1"]
[EndTime "10:50:11 PDT"]
[Termination "tandaleo won by resignation"]

1. d4 {[%clk 0:03:00.9]} 1... Nf6 {[%clk 0:02:52.2]} 2. c4 {[%clk 0:02:58.3]}
2... e6 {[%clk 0:02:51.7]} 3. Nc3 {[%clk 0:02:57.8]} 3... Bb4 {[%clk 0:02:50]}
4. e3 {[%clk 0:02:56.6]} 4... O-O {[%clk 0:02:48.1]} 5. Ne2 {[%clk 0:02:56.4]}
5... d5 {[%clk 0:02:46.8]} 6. a3 {[%clk 0:02:56.6]} 6... Be7 {[%clk 0:02:46.6]}
7. cxd5 {[%clk 0:02:50.2]} 7... exd5 {[%clk 0:02:38]} 8. Nf4 {[%clk 0:02:49.3]}
8... c6 {[%clk 0:02:37]} 9. Bd3 {[%clk 0:02:47.3]} 9... Nbd7 {[%clk 0:02:30.3]}
10. O-O {[%clk 0:02:47]} 10... Re8 {[%clk 0:02:28.7]} 11. b4 {[%clk 0:02:46.7]}
11... a6 {[%clk 0:02:27.3]} 12. Rb1 {[%clk 0:02:41.5]} 12... b5 {[%clk 0:02:16]}
13. e4 {[%clk 0:02:00]} 13... dxe4 {[%clk 0:02:06]} 14. Nxe4 {[%clk 0:01:59.2]}
14... Nb6 {[%clk 0:02:02.7]} 15. Bb2 {[%clk 0:01:12.5]} 15... Nfd5 {[%clk
0:01:56.2]} 16. Nxd5 {[%clk 0:01:06]} 16... cxd5 {[%clk 0:01:42.6]} 17. Nc5
{[%clk 0:01:06.2]} 17... Nc4 {[%clk 0:01:40.1]} 18. a4 {[%clk 0:01:01.6]} 18...
a5 {[%clk 0:00:57.9]} 19. axb5 {[%clk 0:00:40.6]} 19... axb4 {[%clk 0:00:57.1]}
20. Ba1 {[%clk 0:00:27.4]} 20... Qb6 {[%clk 0:00:46.3]} 21. Rxb4 {[%clk
0:00:27]} 21... Bxc5 {[%clk 0:00:43.5]} 22. dxc5 {[%clk 0:00:27.5]} 22... Qxc5
{[%clk 0:00:43.6]} 23. Rb1 {[%clk 0:00:27.6]} 23... f6 {[%clk 0:00:34]} 24. Qh5
{[%clk 0:00:23.2]} 24... f5 {[%clk 0:00:18.9]} 25. Qxe8+ {[%clk 0:00:22.4]} 1-0

[Event "*** Titled Tuesday Blitz"]
[Site "Chess.com"]
[Date "2020.04.14"]
[Round "5"]
[White "FranciscodelaF"]
[Black "JozefKneht"]
[Result "0-1"]
[WhiteElo "2412"]
[BlackElo "2596"]
[TimeControl "180+1"]
[EndTime "10:50:13 PDT"]
[Termination "JozefKneht won by resignation"]

1. d4 {[%clk 0:03:00.9]} 1... d5 {[%clk 0:02:59]} 2. c4 {[%clk 0:02:58.5]} 2...
e6 {[%clk 0:02:59]} 3. Nf3 {[%clk 0:02:57.6]} 3... Nf6 {[%clk 0:02:59.2]} 4. g3
{[%clk 0:02:39.4]} 4... Be7 {[%clk 0:02:58]} 5. Bg2 {[%clk 0:02:37.6]} 5... O-O
{[%clk 0:02:58.6]} 6. O-O {[%clk 0:02:20.4]} 6... dxc4 {[%clk 0:02:56.8]} 7. Qc2
{[%clk 0:02:09.1]} 7... a6 {[%clk 0:02:56]} 8. a4 {[%clk 0:02:08.3]} 8... Bd7
{[%clk 0:02:55.1]} 9. Qxc4 {[%clk 0:02:03.9]} 9... Bc6 {[%clk 0:02:54.8]} 10.
Bf4 {[%clk 0:01:59.1]} 10... Bd6 {[%clk 0:02:54]} 11. Bg5 {[%clk 0:01:51.8]}
11... Nbd7 {[%clk 0:02:52.2]} 12. Nc3 {[%clk 0:01:48.6]} 12... h6 {[%clk
0:02:52.7]} 13. Bxf6 {[%clk 0:01:46.6]} 13... Nxf6 {[%clk 0:02:53.6]} 14. Rfd1
{[%clk 0:01:43.9]} 14... Bd5 {[%clk 0:02:46]} 15. Qd3 {[%clk 0:01:40.1]} 15...
Bxf3 {[%clk 0:02:40.5]} 16. Qxf3 {[%clk 0:01:37.7]} 16... c6 {[%clk 0:02:40.7]}
17. e4 {[%clk 0:01:33.6]} 17... Be7 {[%clk 0:02:35.5]} 18. Qe2 {[%clk 0:01:27]}
18... Re8 {[%clk 0:02:29.4]} 19. f4 {[%clk 0:01:27.3]} 19... Qb6 {[%clk
0:02:27.1]} 20. a5 {[%clk 0:01:24.1]} 20... Qb4 {[%clk 0:02:22.6]} 21. e5 {[%clk
0:01:17.9]} 21... Nd5 {[%clk 0:02:19.7]} 22. Ne4 {[%clk 0:01:01.8]} 22... Red8
{[%clk 0:02:13.8]} 23. Qf2 {[%clk 0:00:40.4]} 23... Nc7 {[%clk 0:02:05.5]} 24.
f5 {[%clk 0:00:18.2]} 24... exf5 {[%clk 0:02:03.1]} 25. Qxf5 {[%clk 0:00:16.7]}
25... Rxd4 {[%clk 0:02:01.9]} 26. Rf1 {[%clk 0:00:16]} 26... Rf8 {[%clk
0:02:00.5]} 27. Nf6+ {[%clk 0:00:05.2]} 27... gxf6 {[%clk 0:01:48.8]} 28. exf6
{[%clk 0:00:06.1]} 28... Bc5 {[%clk 0:01:47.6]} 29. Kh1 {[%clk 0:00:05.4]} 29...
Rg4 {[%clk 0:01:36.5]} 30. Bf3 {[%clk 0:00:05.2]} 30... Rg5 {[%clk 0:01:34.2]}
31. Qh3 {[%clk 0:00:05.6]} 31... Rg6 {[%clk 0:01:25.4]} 32. Rae1 {[%clk
0:00:02.8]} 32... Rxf6 {[%clk 0:01:20]} 33. Be4 {[%clk 0:00:03.7]} 33... Rxf1+
{[%clk 0:01:16.8]} 34. Qxf1 {[%clk 0:00:04.6]} 34... Ne6 {[%clk 0:01:14.6]} 35.
Qf5 {[%clk 0:00:03.7]} 35... Qxe1+ {[%clk 0:01:13.4]} 36. Kg2 {[%clk 0:00:03.4]}
36... Qg1+ {[%clk 0:01:11.7]} 37. Kh3 {[%clk 0:00:04.3]} 37... Ng5+ {[%clk
0:01:11.5]} 38. Kg4 {[%clk 0:00:04.1]} 38... Nxe4 {[%clk 0:01:07.6]} 0-1

[Event "*** Titled Tuesday Blitz"]
[Site "Chess.com"]
[Date "2020.04.14"]
[Round "5"]
[White "Kumi29"]
[Black "StegariuVlad"]
[Result "1/2-1/2"]
[WhiteElo "2419"]
[BlackElo "2588"]
[TimeControl "180+1"]
[EndTime "10:50:13 PDT"]
[Termination "Game drawn by repetition"]

1. d4 {[%clk 0:03:00.9]} 1... Nf6 {[%clk 0:02:59.2]} 2. Bg5 {[%clk 0:03:00.3]}
2... e6 {[%clk 0:02:56.2]} 3. Nd2 {[%clk 0:03:00.1]} 3... c5 {[%clk 0:02:55.4]}
4. e3 {[%clk 0:03:00.2]} 4... Be7 {[%clk 0:02:54.5]} 5. Bd3 {[%clk 0:02:58.9]}
5... b6 {[%clk 0:02:52.1]} 6. Ngf3 {[%clk 0:02:58]} 6... Bb7 {[%clk 0:02:51.8]}
7. O-O {[%clk 0:02:58.5]} 7... O-O {[%clk 0:02:50.8]} 8. c3 {[%clk 0:02:58.2]}
8... d5 {[%clk 0:02:50.2]} 9. Ne5 {[%clk 0:02:55.4]} 9... Nbd7 {[%clk
0:02:49.8]} 10. f4 {[%clk 0:02:55.2]} 10... Ne8 {[%clk 0:02:49.9]} 11. Bxh7+
{[%clk 0:02:31.8]} 11... Kxh7 {[%clk 0:02:49.1]} 12. Qh5+ {[%clk 0:02:32.7]}
12... Kg8 {[%clk 0:02:49.1]} 13. Rf3 {[%clk 0:02:10.1]} 13... Nxe5 {[%clk
0:02:39.6]} 14. Rh3 {[%clk 0:01:51.5]} 14... f5 {[%clk 0:02:38.8]} 15. dxe5
{[%clk 0:01:40.7]} 15... d4 {[%clk 0:02:07.1]} 16. Nf3 {[%clk 0:00:52.9]} 16...
Bxf3 {[%clk 0:02:04]} 17. gxf3 {[%clk 0:00:52.8]} 17... dxe3 {[%clk 0:01:58.8]}
18. Kh1 {[%clk 0:00:34.9]} 18... e2 {[%clk 0:01:58]} 19. Rg1 {[%clk 0:00:33.1]}
19... Qd1 {[%clk 0:01:35.8]} 20. Bxe7 {[%clk 0:00:14.9]} 20... Qxg1+ {[%clk
0:00:19.1]} 21. Kxg1 {[%clk 0:00:15.8]} 21... e1=Q+ {[%clk 0:00:19.1]} 22. Kg2
{[%clk 0:00:16.4]} 22... Qe2+ {[%clk 0:00:19.6]} 23. Kg1 {[%clk 0:00:15.5]}
23... Qe1+ {[%clk 0:00:19.9]} 24. Kg2 {[%clk 0:00:15.9]} 24... Qe2+ {[%clk
0:00:19.8]} 25. Kg1 {[%clk 0:00:16.3]} 25... Qe1+ {[%clk 0:00:20.2]} 1/2-1/2

[Event "*** Titled Tuesday Blitz"]
[Site "Chess.com"]
[Date "2020.04.14"]
[Round "5"]
[White "GMMatamoros"]
[Black "frankshar"]
[Result "1-0"]
[WhiteElo "2509"]
[BlackElo "2255"]
[TimeControl "180+1"]
[EndTime "10:50:14 PDT"]
[Termination "GMMatamoros won by resignation"]

1. Nf3 {[%clk 0:03:00.9]} 1... Nf6 {[%clk 0:02:57.9]} 2. c4 {[%clk 0:03:00.7]}
2... e6 {[%clk 0:02:57.4]} 3. g3 {[%clk 0:03:01.2]} 3... d5 {[%clk 0:02:57.6]}
4. Bg2 {[%clk 0:03:01.6]} 4... dxc4 {[%clk 0:02:58]} 5. Qa4+ {[%clk 0:03:00.3]}
5... Bd7 {[%clk 0:02:58.4]} 6. Qxc4 {[%clk 0:03:00.2]} 6... c5 {[%clk
0:02:58.4]} 7. Qc2 {[%clk 0:02:54]} 7... Qc8 {[%clk 0:02:46.7]} 8. Nc3 {[%clk
0:02:50.3]} 8... Nc6 {[%clk 0:02:43.3]} 9. O-O {[%clk 0:02:43.1]} 9... Be7
{[%clk 0:02:41.6]} 10. e3 {[%clk 0:02:40.6]} 10... O-O {[%clk 0:02:36.7]} 11. a3
{[%clk 0:02:32.4]} 11... b6 {[%clk 0:02:23.4]} 12. d4 {[%clk 0:02:31.7]} 12...
cxd4 {[%clk 0:02:22.2]} 13. exd4 {[%clk 0:02:32.6]} 13... Qa6 {[%clk 0:02:09.6]}
14. Be3 {[%clk 0:02:04.7]} 14... Rac8 {[%clk 0:02:06.2]} 15. b4 {[%clk
0:01:54.5]} 15... b5 {[%clk 0:01:44.1]} 16. Rfd1 {[%clk 0:01:38.8]} 16... Nd5
{[%clk 0:01:35.6]} 17. Nxd5 {[%clk 0:01:36.7]} 17... exd5 {[%clk 0:01:36.5]} 18.
Qb3 {[%clk 0:01:33]} 18... Be6 {[%clk 0:01:27.5]} 19. Rac1 {[%clk 0:01:26.5]}
19... Qb7 {[%clk 0:01:14.5]} 20. Ne5 {[%clk 0:01:05.8]} 20... Rfd8 {[%clk
0:01:01.8]} 21. Nd3 {[%clk 0:01:05]} 21... a5 {[%clk 0:00:50.8]} 22. Nc5 {[%clk
0:00:53.7]} 22... Qb6 {[%clk 0:00:45.2]} 23. Nxe6 {[%clk 0:00:38.2]} 23... fxe6
{[%clk 0:00:46.1]} 24. Bh3 {[%clk 0:00:38.4]} 24... Kf7 {[%clk 0:00:38.4]} 25.
Qd3 {[%clk 0:00:37.1]} 25... g6 {[%clk 0:00:35.3]} 26. Qe2 {[%clk 0:00:31.8]}
26... Na7 {[%clk 0:00:20.5]} 27. bxa5 {[%clk 0:00:28.1]} 27... Qxa5 {[%clk
0:00:20.2]} 28. Bxe6+ {[%clk 0:00:26.6]} 1-0

[Event "*** Titled Tuesday Blitz"]
[Site "Chess.com"]
[Date "2020.04.14"]
[Round "5"]
[White "Zkid"]
[Black "kayrakamer"]
[Result "1-0"]
[WhiteElo "2819"]
[BlackElo "2573"]
[TimeControl "180+1"]
[EndTime "10:50:15 PDT"]
[Termination "Zkid won by checkmate"]

1. e4 {[%clk 0:03:00.9]} 1... c5 {[%clk 0:02:59.5]} 2. Nf3 {[%clk 0:03:00.5]}
2... e6 {[%clk 0:03:00]} 3. d4 {[%clk 0:03:00]} 3... cxd4 {[%clk 0:03:00.9]} 4.
Nxd4 {[%clk 0:03:00.6]} 4... a6 {[%clk 0:03:01.6]} 5. c4 {[%clk 0:03:00.4]} 5...
Nf6 {[%clk 0:03:01.6]} 6. Nc3 {[%clk 0:03:00.7]} 6... Qc7 {[%clk 0:03:02.2]} 7.
a3 {[%clk 0:03:00.4]} 7... b6 {[%clk 0:03:02.7]} 8. Be2 {[%clk 0:02:57.5]} 8...
Bb7 {[%clk 0:03:03.1]} 9. f3 {[%clk 0:02:57.9]} 9... Be7 {[%clk 0:03:02]} 10.
O-O {[%clk 0:02:53.6]} 10... d6 {[%clk 0:03:02.6]} 11. Be3 {[%clk 0:02:53.2]}
11... Nbd7 {[%clk 0:03:03.2]} 12. Rc1 {[%clk 0:02:53.5]} 12... O-O {[%clk
0:03:03.7]} 13. Kh1 {[%clk 0:02:51.7]} 13... Rac8 {[%clk 0:03:03.7]} 14. Qe1
{[%clk 0:02:49.7]} 14... Qb8 {[%clk 0:03:00.5]} 15. g4 {[%clk 0:02:43.3]} 15...
Bd8 {[%clk 0:02:54.5]} 16. g5 {[%clk 0:02:40.9]} 16... Ne8 {[%clk 0:02:50.8]}
17. h4 {[%clk 0:02:37]} 17... Bc7 {[%clk 0:02:49.6]} 18. h5 {[%clk 0:02:35.6]}
18... Ne5 {[%clk 0:02:25.6]} 19. f4 {[%clk 0:02:27.3]} 19... Nc6 {[%clk
0:02:18.1]} 20. Nf3 {[%clk 0:02:23.4]} 20... f5 {[%clk 0:02:10]} 21. exf5 {[%clk
0:02:21.4]} 21... Rxf5 {[%clk 0:02:04.8]} 22. Bd3 {[%clk 0:02:15.2]} 22... Ne5
{[%clk 0:01:58.7]} 23. Bxf5 {[%clk 0:02:03.3]} 23... Nxf3 {[%clk 0:01:53.4]} 24.
Bxe6+ {[%clk 0:02:03.1]} 24... Kh8 {[%clk 0:01:52]} 25. Rxf3 {[%clk 0:02:03.1]}
25... Bxf3+ {[%clk 0:01:51.5]} 26. Kg1 {[%clk 0:01:59.9]} 26... Rd8 {[%clk
0:01:27.6]} 27. h6 {[%clk 0:01:47.9]} 27... d5 {[%clk 0:01:24]} 28. Bd4 {[%clk
0:01:24.4]} 28... Bxf4 {[%clk 0:01:19.7]} 29. Bf7 {[%clk 0:01:21.4]} 29... Bh2+
{[%clk 0:01:01.5]} 30. Kf1 {[%clk 0:01:20]} 30... Be4 {[%clk 0:00:26.8]} 31.
Nxd5 {[%clk 0:01:03.1]} 31... Rxd5 {[%clk 0:00:24]} 32. Qxe4 {[%clk 0:00:57.9]}
32... Rxd4 {[%clk 0:00:12.1]} 33. Qxd4 {[%clk 0:00:56.3]} 33... Qb7 {[%clk
0:00:05.2]} 34. hxg7+ {[%clk 0:00:55.2]} 34... Nxg7 {[%clk 0:00:02.9]} 35. Qd8+
{[%clk 0:00:56.1]} 35... Ne8 {[%clk 0:00:03.8]} 36. Qxe8+ {[%clk 0:00:57]} 36...
Kg7 {[%clk 0:00:04.3]} 37. Qg8# {[%clk 0:00:56.4]} 1-0

[Event "*** Titled Tuesday Blitz"]
[Site "Chess.com"]
[Date "2020.04.14"]
[Round "5"]
[White "renehp"]
[Black "RiskyDecision"]
[Result "1/2-1/2"]
[WhiteElo "2425"]
[BlackElo "2592"]
[TimeControl "180+1"]
[EndTime "10:50:15 PDT"]
[Termination "Game drawn by repetition"]

1. e4 {[%clk 0:03:00]} 1... e6 {[%clk 0:02:59.6]} 2. d4 {[%clk 0:02:59.7]} 2...
d5 {[%clk 0:02:59.9]} 3. Nc3 {[%clk 0:03:00.3]} 3... Nf6 {[%clk 0:02:59.7]} 4.
e5 {[%clk 0:03:00.2]} 4... Nfd7 {[%clk 0:02:59.6]} 5. f4 {[%clk 0:03:00.9]} 5...
c5 {[%clk 0:02:59.8]} 6. Nf3 {[%clk 0:03:01.5]} 6... Be7 {[%clk 0:03:00.1]} 7.
Be3 {[%clk 0:03:01.4]} 7... b6 {[%clk 0:03:00.3]} 8. Qd2 {[%clk 0:03:00.6]} 8...
Nc6 {[%clk 0:03:00.4]} 9. Nd1 {[%clk 0:03:01]} 9... cxd4 {[%clk 0:02:51.8]} 10.
Nxd4 {[%clk 0:03:00.5]} 10... Nxd4 {[%clk 0:02:52]} 11. Bxd4 {[%clk 0:03:00.6]}
11... O-O {[%clk 0:02:51.2]} 12. Bd3 {[%clk 0:02:59.7]} 12... Nb8 {[%clk
0:02:47.3]} 13. O-O {[%clk 0:02:58.2]} 13... Nc6 {[%clk 0:02:47.7]} 14. c3
{[%clk 0:02:58.8]} 14... Nxd4 {[%clk 0:02:46]} 15. cxd4 {[%clk 0:02:58.9]} 15...
Bd7 {[%clk 0:02:38.7]} 16. Ne3 {[%clk 0:02:56.6]} 16... f5 {[%clk 0:02:34.1]}
17. g4 {[%clk 0:02:53.2]} 17... g6 {[%clk 0:02:32.5]} 18. gxf5 {[%clk
0:02:52.7]} 18... gxf5 {[%clk 0:02:31.7]} 19. Kh1 {[%clk 0:02:53.2]} 19... Kh8
{[%clk 0:02:31.9]} 20. Rg1 {[%clk 0:02:53.4]} 20... Rg8 {[%clk 0:02:26.1]} 21.
Rac1 {[%clk 0:02:48.1]} 21... Rc8 {[%clk 0:02:19.4]} 22. Rxg8+ {[%clk
0:02:44.5]} 22... Qxg8 {[%clk 0:02:19.3]} 23. Rg1 {[%clk 0:02:45.1]} 23... Qf7
{[%clk 0:02:19.2]} 24. b3 {[%clk 0:02:34.1]} 24... b5 {[%clk 0:02:14]} 25. Qa5
{[%clk 0:02:23.3]} 25... Qh5 {[%clk 0:01:55.5]} 26. Qxa7 {[%clk 0:01:38]} 26...
Qf3+ {[%clk 0:01:43.8]} 27. Ng2 {[%clk 0:01:37.3]} 27... Rg8 {[%clk 0:01:23]}
28. Bf1 {[%clk 0:01:23.1]} 28... Bh4 {[%clk 0:00:42.1]} 29. Qxd7 {[%clk
0:01:03.5]} 29... Bf2 {[%clk 0:00:42.1]} 30. Qxe6 {[%clk 0:01:01.3]} 30... Bxg1
{[%clk 0:00:41.9]} 31. Qf6+ {[%clk 0:01:00.8]} 31... Rg7 {[%clk 0:00:41.5]} 32.
Kxg1 {[%clk 0:01:00.5]} 32... Qe3+ {[%clk 0:00:39]} 33. Kh1 {[%clk 0:00:57.4]}
33... Qf2 {[%clk 0:00:36.3]} 34. Qf8+ {[%clk 0:00:41.2]} 34... Rg8 {[%clk
0:00:35.4]} 35. Qf6+ {[%clk 0:00:41.7]} 35... Rg7 {[%clk 0:00:35.8]} 36. Qf8+
{[%clk 0:00:40.3]} 36... Rg8 {[%clk 0:00:36]} 37. Qf6+ {[%clk 0:00:40.8]} 37...
Rg7 {[%clk 0:00:36.1]} 1/2-1/2

[Event "*** Titled Tuesday Blitz"]
[Site "Chess.com"]
[Date "2020.04.14"]
[Round "5"]
[White "pirulillo"]
[Black "hypert"]
[Result "0-1"]
[WhiteElo "2185"]
[BlackElo "2501"]
[TimeControl "180+1"]
[EndTime "10:50:17 PDT"]
[Termination "hypert won by resignation"]

1. e4 {[%clk 0:02:59.8]} 1... c5 {[%clk 0:02:59.6]} 2. Nf3 {[%clk 0:02:58.9]}
2... Nc6 {[%clk 0:03:00.2]} 3. Bb5 {[%clk 0:02:58]} 3... e6 {[%clk 0:03:00.5]}
4. O-O {[%clk 0:02:56]} 4... Nge7 {[%clk 0:03:00.8]} 5. b3 {[%clk 0:02:56.2]}
5... Nd4 {[%clk 0:02:56.3]} 6. Nxd4 {[%clk 0:02:55.3]} 6... cxd4 {[%clk
0:02:57.2]} 7. Bb2 {[%clk 0:02:54.9]} 7... Nc6 {[%clk 0:02:57.6]} 8. c3 {[%clk
0:02:48.9]} 8... Bc5 {[%clk 0:02:52.7]} 9. b4 {[%clk 0:02:44.3]} 9... Bb6 {[%clk
0:02:52.5]} 10. a4 {[%clk 0:02:44]} 10... a6 {[%clk 0:02:46]} 11. Bxc6 {[%clk
0:02:40.3]} 11... dxc6 {[%clk 0:02:46.1]} 12. e5 {[%clk 0:02:33.2]} 12... O-O
{[%clk 0:02:37.1]} 13. Qg4 {[%clk 0:02:32.4]} 13... a5 {[%clk 0:02:17.5]} 14.
bxa5 {[%clk 0:02:27.1]} 14... Rxa5 {[%clk 0:02:17.2]} 15. cxd4 {[%clk
0:02:24.4]} 15... Rd5 {[%clk 0:02:17]} 16. a5 {[%clk 0:02:09.2]} 16... Bxd4
{[%clk 0:02:15.9]} 17. Nc3 {[%clk 0:02:05.7]} 17... Rxe5 {[%clk 0:02:04.8]} 18.
Ra4 {[%clk 0:01:57.7]} 18... c5 {[%clk 0:01:56.5]} 19. Kh1 {[%clk 0:01:21.5]}
19... Bd7 {[%clk 0:01:47.8]} 20. Rxd4 {[%clk 0:01:15.9]} 20... cxd4 {[%clk
0:01:48.3]} 21. Qxd4 {[%clk 0:01:15.4]} 21... Rg5 {[%clk 0:01:48.8]} 22. Ne4
{[%clk 0:01:13.6]} 22... Rg6 {[%clk 0:01:48.7]} 23. Ba3 {[%clk 0:00:45.3]} 23...
Bc6 {[%clk 0:01:48.6]} 24. Qb4 {[%clk 0:00:30.4]} 24... Re8 {[%clk 0:01:39.8]}
25. f3 {[%clk 0:00:30]} 25... Qd3 {[%clk 0:01:25.6]} 26. Re1 {[%clk 0:00:26.6]}
26... Bxe4 {[%clk 0:01:22]} 27. fxe4 {[%clk 0:00:27.5]} 27... h5 {[%clk
0:01:15.3]} 28. h3 {[%clk 0:00:20.8]} 28... Rd8 {[%clk 0:00:51.6]} 29. Qc3
{[%clk 0:00:13.3]} 29... Qxd2 {[%clk 0:00:47]} 30. Qxd2 {[%clk 0:00:12.7]} 30...
Rxd2 {[%clk 0:00:47.9]} 31. Rg1 {[%clk 0:00:09.8]} 31... Ra2 {[%clk 0:00:46.9]}
32. Bb4 {[%clk 0:00:09.5]} 32... Re2 {[%clk 0:00:47]} 0-1

[Event "*** Titled Tuesday Blitz"]
[Site "Chess.com"]
[Date "2020.04.14"]
[Round "5"]
[White "kingnb"]
[Black "paradise10"]
[Result "1/2-1/2"]
[WhiteElo "2415"]
[BlackElo "2729"]
[TimeControl "180+1"]
[EndTime "10:50:17 PDT"]
[Termination "Game drawn by repetition"]

1. e4 {[%clk 0:03:00.9]} 1... c5 {[%clk 0:02:58.4]} 2. Nf3 {[%clk 0:03:00]} 2...
a6 {[%clk 0:02:54]} 3. c3 {[%clk 0:02:58.1]} 3... d5 {[%clk 0:02:52]} 4. exd5
{[%clk 0:02:59]} 4... Qxd5 {[%clk 0:02:52.9]} 5. d4 {[%clk 0:02:59.9]} 5... Nf6
{[%clk 0:02:50.5]} 6. Be3 {[%clk 0:02:57.5]} 6... cxd4 {[%clk 0:02:46.7]} 7.
cxd4 {[%clk 0:02:58.3]} 7... e6 {[%clk 0:02:47]} 8. Nc3 {[%clk 0:02:58.8]} 8...
Qd6 {[%clk 0:02:46.9]} 9. Rc1 {[%clk 0:02:52.9]} 9... Nc6 {[%clk 0:02:46.9]} 10.
Be2 {[%clk 0:02:53.4]} 10... Be7 {[%clk 0:02:46.3]} 11. O-O {[%clk 0:02:54]}
11... O-O {[%clk 0:02:44.9]} 12. a3 {[%clk 0:02:54.9]} 12... b5 {[%clk
0:02:40.6]} 13. b4 {[%clk 0:02:54.8]} 13... Bb7 {[%clk 0:02:39.9]} 14. Qb3
{[%clk 0:02:55.2]} 14... Rfd8 {[%clk 0:02:39.5]} 15. Rfd1 {[%clk 0:02:55.3]}
15... Rac8 {[%clk 0:02:39]} 16. h3 {[%clk 0:02:50.8]} 16... h6 {[%clk 0:02:37]}
17. Bd3 {[%clk 0:02:36.4]} 17... Bf8 {[%clk 0:02:27.1]} 18. Bb1 {[%clk
0:02:33.5]} 18... Ne7 {[%clk 0:02:24.2]} 19. Ne5 {[%clk 0:02:31.3]} 19... Ned5
{[%clk 0:02:20.9]} 20. Nxd5 {[%clk 0:02:00.8]} 20... Qxd5 {[%clk 0:02:05]} 21.
Qxd5 {[%clk 0:01:56.6]} 21... Bxd5 {[%clk 0:02:03.2]} 22. Nd3 {[%clk 0:01:53.2]}
22... Bc4 {[%clk 0:01:50.7]} 23. Nc5 {[%clk 0:01:50.6]} 23... Bxc5 {[%clk
0:01:50.5]} 24. dxc5 {[%clk 0:01:51.5]} 24... Nd5 {[%clk 0:01:48.2]} 25. Be4
{[%clk 0:01:44.7]} 25... f5 {[%clk 0:01:42.2]} 26. Bxd5 {[%clk 0:01:44.6]} 26...
Rxd5 {[%clk 0:01:41.5]} 27. Bf4 {[%clk 0:01:37]} 27... Rcd8 {[%clk 0:01:38.2]}
28. Bd6 {[%clk 0:01:33.8]} 28... Kf7 {[%clk 0:01:33.1]} 29. f3 {[%clk
0:01:25.9]} 29... Bb3 {[%clk 0:01:22.9]} 30. Rxd5 {[%clk 0:01:22.8]} 30... Bxd5
{[%clk 0:01:23.8]} 31. Kf2 {[%clk 0:01:16.8]} 31... Bc6 {[%clk 0:01:14.9]} 32.
Ke3 {[%clk 0:01:16]} 32... Kf6 {[%clk 0:01:12.7]} 33. f4 {[%clk 0:01:12.9]}
33... g5 {[%clk 0:01:08.6]} 34. g3 {[%clk 0:01:11.1]} 34... gxf4+ {[%clk
0:00:51.8]} 35. Kxf4 {[%clk 0:01:12]} 35... h5 {[%clk 0:00:45.3]} 36. Be5+
{[%clk 0:01:03.2]} 36... Kg6 {[%clk 0:00:42.4]} 37. Bd6 {[%clk 0:01:03.7]} 37...
Kf6 {[%clk 0:00:41.4]} 38. Rd1 {[%clk 0:00:59]} 38... Bd5 {[%clk 0:00:32]} 39.
Rc1 {[%clk 0:00:59.1]} 39... Bc6 {[%clk 0:00:30.7]} 1/2-1/2